bitfinex-derivatives/quotes_BTCF0:USTF0_20220102
["timestamp","ask_amount","ask_price","bid_price","bid_amount"]
[1641115122046,0.34130171,47210.0,47200.0,0.14033567]
[1641115122746,0.52830171,47210.0,47200.0,0.14033567]
[1641115123953,0.34130171,47210.0,47209.0,0.35820039]
[1641115124147,0.34183156,47210.0,47209.0,0.35820039]
[1641115124747,0.52983156,47210.0,47209.0,0.35820039]
[1641115125449,0.62012945,47210.0,47209.0,0.35820039]
[1641115125949,0.43212945,47210.0,47209.0,0.35820039]
[1641115126149,0.4315996,47210.0,47209.0,0.35820039]
[1641115126350,0.4315996,47210.0,47208.0,0.59700064]
[1641115126850,0.09029789,47209.0,47208.0,0.59700064]
[1641115127152,0.09082774,47209.0,47208.0,0.59700064]
[1641115128751,0.27982774,47209.0,47208.0,0.59700064]
[1641115130160,0.09082774,47209.0,47208.0,0.59700064]
[1641115130355,0.09029789,47209.0,47208.0,0.59700064]
[1641115130758,0.27529789,47209.0,47208.0,0.76700064]
[1641115131157,0.27529789,47209.0,47208.0,0.17]
[1641115131360,0.27529789,47209.0,47208.0,1.0058009]
[1641115131761,0.27529789,47209.0,47208.0,0.17]
[1641115131957,0.27529789,47209.0,47208.0,0.53407051]
[1641115132257,0.09029789,47209.0,47208.0,0.36407051]
[1641115132857,0.09029789,47209.0,47208.0,0.55407051]
[1641115134161,0.09029789,47209.0,47208.0,0.36407051]
[1641115134764,0.09029789,47209.0,47208.0,0.55607051]
[1641115135364,0.09029789,47209.0,47208.0,0.192]
[1641115136265,0.09029789,47209.0,47208.0,1.20301763]
[1641115136667,0.18394789,47209.0,47208.0,1.20301763]
[1641115136868,0.37194789,47209.0,47208.0,1.20301763]
[1641115137065,0.37194789,47209.0,47208.0,0.83894712]
[1641115137866,0.37194789,47209.0,47206.0,0.83894712]
[1641115138066,0.37194789,47209.0,47208.0,0.59953442]
[1641115138267,0.18394789,47209.0,47208.0,0.59953442]
[1641115138466,0.09029789,47209.0,47208.0,0.59953442]
[1641115138866,0.28829789,47209.0,47208.0,0.59953442]
[1641115139866,0.28829789,47209.0,47206.0,0.83894712]
[1641115140066,0.28829789,47209.0,47207.0,0.83894712]
[1641115140667,0.28829789,47209.0,47202.0,1.31225809]
[1641115140668,0.09029789,47208.0,47203.0,1.31225809]
[1641115140868,0.09029789,47208.0,47207.0,0.172]
[1641115141468,0.26129789,47209.0,47207.0,0.172]
[1641115142071,0.09029789,47209.0,47206.0,0.14033567]
[1641115142771,0.09029789,47208.0,47206.0,0.32933567]
[1641115143370,1.32413665,47214.0,47206.0,1.64159376]
[1641115144070,1.32413665,47214.0,47206.0,1.45259376]
[1641115144674,1.32413665,47214.0,47213.0,0.60079097]
[1641115144871,1.5056665,47214.0,47213.0,0.60079097]
[1641115145172,1.50513665,47214.0,47213.0,0.60079097]
[1641115145371,1.59543454,47214.0,47212.0,0.60079097]
[1641115146072,0.09029789,47213.0,47206.0,1.61659376]
[1641115146273,0.09029789,47213.0,47206.0,1.45259376]
[1641115146874,0.27329789,47213.0,47206.0,1.62259376]
[1641115147277,0.09029789,47212.0,47206.0,1.62259376]
[1641115148074,0.09029789,47212.0,47206.0,1.45259376]
[1641115148775,1.41443454,47215.0,47206.0,1.64559376]
[1641115150175,1.41443454,47215.0,47206.0,1.45259376]
[1641115150777,1.60143454,47215.0,47206.0,1.45259376]
[1641115151888,0.09029789,47214.0,47206.0,1.45259376]
[1641115152890,0.25829789,47214.0,47206.0,1.62759376]
[1641115153091,0.168,47214.0,47207.0,1.31225809]
[1641115153590,0.09029789,47213.0,47207.0,1.31225809]
[1641115154795,0.24929789,47213.0,47207.0,1.49725809]
[1641115155094,0.159,47213.0,47207.0,1.49725809]
[1641115155594,0.09029789,47212.0,47207.0,1.49725809]
[1641115156195,0.09029789,47212.0,47207.0,1.31225809]
[1641115156796,0.25129789,47212.0,47207.0,1.49925809]
[1641115156996,0.84251484,47210.0,47207.0,1.49925809]
[1641115157697,0.84251484,47210.0,47208.0,1.31225809]
[1641115157897,0.84251484,47210.0,47208.0,1.37690809]
[1641115158399,0.84251484,47210.0,47208.0,1.82769076]
[1641115158896,0.84251484,47210.0,47208.0,2.01869076]
[1641115159096,0.84251484,47210.0,47209.0,0.45078267]
[1641115160898,0.84251484,47210.0,47209.0,0.64478267]
[1641115161298,0.06474928,47210.0,47209.0,1.98801347]
[1641115161496,0.06474928,47210.0,47209.0,1.96683476]
[1641115162098,0.09029789,47215.0,47209.0,0.46057667]
[1641115162298,1.68499339,47216.0,47213.0,0.18]
[1641115162498,0.36085674,47216.0,47214.0,0.009794]
[1641115163298,0.36085674,47217.0,47215.0,0.45078267]
[1641115163898,0.36085674,47217.0,47215.0,0.59111834]
[1641115164098,0.36085674,47217.0,47215.0,0.14033567]
[1641115164899,0.36085674,47217.0,47215.0,0.33333567]
[1641115165110,0.36085674,47217.0,47216.0,0.45078267]
[1641115167002,0.36085674,47217.0,47216.0,0.64378267]
[1641115167401,0.09029789,47225.0,47216.0,0.64378267]
[1641115167601,1.41443454,47225.0,47216.0,0.64378267]
[1641115168401,1.32413665,47223.0,47218.0,0.35995376]
[1641115168602,1.39642665,47223.0,47218.0,0.35995376]
[1641115169002,1.39642665,47223.0,47218.0,0.51195376]
[1641115169202,0.09029789,47222.0,47218.0,0.152]
[1641115169904,0.09029789,47222.0,47218.0,0.51195376]
[1641115170305,0.09029789,47222.0,47218.0,0.35995376]
[1641115170908,0.17100789,47222.0,47218.0,0.54495376]
[1641115171807,0.08071,47222.0,47218.0,0.54495376]
[1641115172207,0.08071,47222.0,47218.0,0.35995376]
[1641115172708,0.09029789,47221.0,47218.0,0.35995376]
[1641115172908,0.09029789,47221.0,47218.0,0.54495376]
[1641115174511,0.09029789,47221.0,47218.0,0.35995376]
[1641115174910,0.09029789,47221.0,47218.0,0.53995376]
[1641115176411,0.09029789,47221.0,47218.0,0.35995376]
[1641115176611,0.09029789,47221.0,47217.0,0.35995376]
[1641115177013,0.09029789,47221.0,47218.0,0.178]
[1641115177413,0.18,47220.0,47218.0,0.178]
[1641115177611,0.09029789,47221.0,47218.0,0.178]
[1641115178013,1.41443454,47221.0,47218.0,0.178]
[1641115178213,1.41443454,47221.0,47216.0,0.35995376]
[1641115178412,0.14033567,47219.0,47216.0,0.35995376]
[1641115179014,0.14033567,47219.0,47216.0,0.53395376]
[1641115180320,0.09029789,47218.0,47216.0,0.35995376]
[1641115181022,1.41443454,47218.0,47217.0,0.49103638]
[1641115181421,1.32413665,47218.0,47216.0,0.182]
[1641115181623,1.32413665,47219.0,47216.0,0.182]
[1641115182224,1.32413665,47219.0,47215.0,3.244652]
[1641115182424,1.32413665,47219.0,47215.0,3.38498767]
[1641115182626,0.20386052,47226.0,47217.0,0.49103638]
[1641115182627,1.32413665,47221.0,47217.0,0.49103638]
[1641115183625,1.41443454,47225.0,47219.0,0.35989859]
[1641115184226,0.09029789,47224.0,47219.0,0.35989859]
[1641115185024,0.09029789,47224.0,47219.0,0.51989859]
[1641115185923,0.27029789,47224.0,47219.0,0.51989859]
[1641115186126,0.27029789,47224.0,47219.0,0.16]
[1641115186428,0.27029789,47224.0,47218.0,0.35989859]
[1641115186926,0.09029789,47223.0,47218.0,0.35989859]
[1641115188327,0.18,47221.0,47218.0,0.35989859]
[1641115188527,1.291,47221.0,47218.0,0.35989859]
[1641115188727,1.291,47221.0,47216.0,0.35989859]
[1641115188929,0.18,47217.0,47216.0,0.35989859]
[1641115189126,0.24809,47217.0,47216.0,0.35989859]
[1641115189527,0.06809,47217.0,47216.0,0.35989859]
[1641115189726,0.06809,47217.0,47215.0,0.59983098]
[1641115189927,0.06809,47217.0,47212.0,0.35989859]
[1641115190528,0.20842567,47217.0,47212.0,0.35989859]
[1641115190929,0.09029789,47216.0,47213.0,0.35989859]
[1641115193030,0.09029789,47216.0,47212.0,0.59983098]
[1641115193031,0.28429789,47216.0,47214.0,0.35989859]
[1641115193832,0.09029789,47215.0,47214.0,0.35989859]
[1641115195034,0.27129789,47215.0,47214.0,0.50189859]
[1641115195240,0.181,47215.0,47214.0,0.50189859]
[1641115196137,0.27129789,47215.0,47214.0,0.50189859]
[1641115196538,0.09029789,47215.0,47214.0,0.35989859]
[1641115197040,0.27129789,47215.0,47214.0,0.47389859]
[1641115197340,0.181,47215.0,47214.0,0.47389859]
[1641115198041,0.181,47215.0,47214.0,0.114]
[1641115198042,0.27129789,47215.0,47214.0,0.114]
[1641115198340,0.09029789,47215.0,47213.0,0.59983098]
[1641115198947,0.93231249,47215.0,47214.0,0.3607792]
[1641115199146,1.09831249,47215.0,47214.0,0.3607792]
[1641115199549,1.09831249,47215.0,47214.0,0.0674]
[1641115199550,1.0080146,47215.0,47214.0,0.0674]
[1641115200348,0.166,47215.0,47214.0,0.56109001]
[1641115200947,0.36043034,47216.0,47214.0,0.56109001]
[1641115201148,0.14033567,47217.0,47214.0,0.56109001]
[1641115201149,0.50076601,47217.0,47214.0,0.75209001]
[1641115201349,0.50076601,47217.0,47214.0,0.93209001]
[1641115202350,0.36043034,47216.0,47215.0,0.49369001]
[1641115203053,0.36043034,47216.0,47215.0,0.68469001]
[1641115204252,0.50076601,47217.0,47215.0,0.68469001]
[1641115204452,0.50076601,47217.0,47215.0,0.49369001]
[1641115205052,0.50076601,47217.0,47216.0,0.49369001]
[1641115205855,0.14033567,47217.0,47216.0,0.49369001]
[1641115206056,0.14033567,47217.0,47216.0,1.33514731]
[1641115206357,0.74105291,47217.0,47216.0,1.33514731]
[1641115206757,1.07261949,47217.0,47216.0,0.49369001]
[1641115207159,1.07261949,47217.0,47216.0,0.68369001]
[1641115208459,1.07261949,47217.0,47216.0,0.49369001]
[1641115209059,1.07261949,47217.0,47216.0,0.68369001]
[1641115209262,1.07261949,47217.0,47216.0,0.19]
[1641115209663,0.93228382,47217.0,47216.0,0.19]
[1641115210165,0.93228382,47217.0,47216.0,0.68369001]
[1641115210563,0.8420146,47217.0,47215.0,1.31976761]
[1641115211163,0.8420146,47217.0,47215.0,1.50976761]
[1641115211364,0.8420146,47217.0,47215.0,2.00345762]
[1641115212067,0.8420146,47217.0,47216.0,0.49369001]
[1641115212266,0.8420146,47217.0,47216.0,0.58899401]
[1641115213066,0.8420146,47217.0,47216.0,0.78099401]
[1641115213464,0.8420146,47218.0,47216.0,0.78099401]
[1641115214465,0.8420146,47218.0,47216.0,0.58899401]
[1641115214665,0.8420146,47218.0,47216.0,0.50348401]
[1641115215069,0.8420146,47218.0,47217.0,0.49369001]
[1641115215870,0.8420146,47218.0,47217.0,0.51486456]
[1641115217171,0.8420146,47218.0,47217.0,0.70886456]
[1641115218469,0.8420146,47218.0,47217.0,0.51486456]
[1641115218670,1.32413665,47222.0,47217.0,0.51486456]
[1641115219071,1.32413665,47222.0,47217.0,0.70586456]
[1641115219271,1.32413665,47222.0,47220.0,0.84105193]
[1641115219470,1.32413665,47222.0,47221.0,0.60075138]
[1641115221171,1.32413665,47222.0,47221.0,0.74875138]
[1641115222173,1.41440587,47222.0,47221.0,1.24244139]
[1641115223173,1.41440587,47222.0,47221.0,1.25344139]
[1641115223374,1.32413665,47222.0,47221.0,1.25344139]
[1641115224472,1.32413665,47222.0,47221.0,1.09444139]
[1641115225277,1.95010871,47225.0,47221.0,0.60075138]
[1641115225477,2.55147043,47224.0,47221.0,0.60075138]
[1641115225679,2.55147043,47224.0,47220.0,0.60075138]
[1641115226078,0.09026922,47223.0,47222.0,0.36063433]
[1641115227782,0.06290025,47222.0,47220.0,0.60075138]
[1641115228079,0.09026922,47223.0,47220.0,0.60075138]
[1641115228982,0.09026922,47221.0,47219.0,0.60075138]
[1641115229380,0.18,47220.0,47219.0,0.60075138]
[1641115229782,0.09026922,47221.0,47219.0,0.60075138]
[1641115229983,1.111,47223.0,47220.0,0.60075138]
[1641115230685,0.09026922,47222.0,47220.0,0.60075138]
[1641115233187,0.09026922,47222.0,47221.0,0.60075138]
[1641115234286,0.09026922,47222.0,47220.0,0.60075138]
[1641115235887,0.09026922,47222.0,47219.0,0.60075138]
[1641115236287,0.18,47220.0,47219.0,0.60075138]
[1641115237591,0.27026922,47220.0,47219.0,0.60075138]
[1641115240403,0.09026922,47220.0,47219.0,0.60075138]
[1641115240906,0.15026922,47220.0,47219.0,0.60075138]
[1641115241105,0.27026922,47220.0,47219.0,0.60075138]
[1641115241402,0.18,47220.0,47219.0,0.60075138]
[1641115242206,1.111,47221.0,47219.0,0.60075138]
[1641115242405,0.09026922,47220.0,47219.0,0.60075138]
[1641115243508,0.09026922,47220.0,47219.0,0.96174642]
[1641115243805,0.09026922,47220.0,47219.0,0.36099504]
[1641115244606,2.4346239,47221.0,47219.0,0.36099504]
[1641115244809,1.3236239,47220.0,47219.0,0.36099504]
[1641115245408,0.09026922,47220.0,47219.0,0.36099504]
[1641115248314,1.3236239,47221.0,47219.0,0.36099504]
[1641115249717,1.3236239,47222.0,47219.0,0.36099504]
[1641115250618,1.3236239,47222.0,47220.0,0.36099504]
[1641115254320,1.3236239,47223.0,47220.0,0.36099504]
[1641115255019,0.09026922,47221.0,47220.0,0.36099504]
[1641115255821,1.3236239,47223.0,47219.0,0.60075138]
[1641115256626,1.3236239,47223.0,47221.0,0.36053642]
[1641115258321,0.11275015,47222.0,47221.0,0.36053642]
[1641115258722,1.2232203,47222.0,47221.0,0.36053642]
[1641115258926,1.52611342,47222.0,47220.0,0.24831232]
[1641115259125,1.41389312,47222.0,47220.0,0.24831232]
[1641115259322,1.60489312,47222.0,47220.0,0.24831232]
[1641115259522,1.60489312,47222.0,47218.0,0.60075138]
[1641115259523,0.09026922,47221.0,47218.0,0.60075138]
[1641115260225,1.20126922,47221.0,47218.0,0.60075138]
[1641115260924,1.41389312,47220.0,47218.0,0.60075138]
[1641115261225,1.41389312,47220.0,47216.0,1.14258255]
[1641115261628,1.41389312,47220.0,47216.0,0.60075138]
[1641115262428,1.41389312,47220.0,47216.0,1.13874828]
[1641115263327,1.60889312,47220.0,47216.0,1.13874828]
[1641115263627,1.60889312,47220.0,47216.0,0.60075138]
[1641115264028,0.09026922,47219.0,47217.0,0.60075138]
[1641115265328,0.22826922,47219.0,47217.0,0.75075138]
[1641115266228,0.09026922,47218.0,47217.0,0.75075138]
[1641115266628,0.09026922,47218.0,47217.0,0.60075138]
[1641115267332,0.24926922,47218.0,47217.0,0.76975138]
[1641115267529,0.24926922,47218.0,47217.0,1.30639578]
[1641115267930,0.58216358,47218.0,47217.0,1.30639578]
[1641115268331,0.58216358,47218.0,47217.0,0.7056444]
[1641115268531,0.58216358,47218.0,47217.0,1.54669633]
[1641115268831,0.42316358,47218.0,47217.0,1.37769633]
[1641115269431,0.58016358,47218.0,47217.0,1.54469633]
[1641115270433,0.58016358,47218.0,47217.0,1.00805193]
[1641115270731,0.42316358,47218.0,47217.0,0.84105193]
[1641115271532,0.58316358,47218.0,47217.0,1.01005193]
[1641115271733,0.58316358,47218.0,47217.0,1.54669633]
[1641115272833,0.42316358,47218.0,47217.0,1.37769633]
[1641115273034,0.42316358,47218.0,47217.0,0.5366444]
[1641115273436,0.58516358,47218.0,47217.0,0.7076444]
[1641115273635,0.58516358,47218.0,47217.0,0.171]
[1641115274438,0.58516358,47218.0,47217.0,1.54869633]
[1641115275538,0.75016358,47218.0,47217.0,1.72069633]
[1641115276538,0.41726922,47218.0,47217.0,1.72069633]
[1641115276738,0.41726922,47218.0,47217.0,1.54969633]
[1641115276938,0.09026922,47218.0,47217.0,1.37769633]
[1641115277541,0.26426922,47218.0,47217.0,1.55769633]
[1641115278743,0.09026922,47218.0,47217.0,1.37769633]
[1641115279442,0.26426922,47218.0,47217.0,1.55669633]
[1641115279644,0.174,47218.0,47217.0,1.02005193]
[1641115280245,0.26426922,47218.0,47217.0,1.55669633]
[1641115280943,0.09026922,47218.0,47217.0,1.37769633]
[1641115281559,0.26426922,47218.0,47217.0,1.55669633]
[1641115283360,0.09026922,47218.0,47217.0,1.37769633]
[1641115283560,0.26426922,47218.0,47217.0,1.55769633]
[1641115285562,0.44226922,47218.0,47217.0,1.74069633]
[1641115286864,0.09026922,47218.0,47217.0,0.5366444]
[1641115287265,1.3236239,47220.0,47217.0,0.5366444]
[1641115287466,0.182,47218.0,47217.0,0.7216444]
[1641115288067,0.27226922,47218.0,47217.0,0.7216444]
[1641115288669,0.27226922,47218.0,47217.0,0.5366444]
[1641115288867,0.09026922,47218.0,47217.0,0.5366444]
[1641115289468,0.09026922,47218.0,47217.0,0.7216444]
[1641115289469,0.27326922,47218.0,47217.0,0.7216444]
[1641115290873,0.09026922,47218.0,47217.0,0.5366444]
[1641115291372,0.09026922,47218.0,47217.0,0.7166444]
[1641115291572,0.09026922,47218.0,47217.0,0.7266444]
[1641115292574,0.84225904,47218.0,47217.0,0.9066444]
[1641115292772,0.84225904,47218.0,47217.0,0.5366444]
[1641115293173,0.84225904,47218.0,47217.0,0.7166444]
[1641115293376,0.60159983,47218.0,47217.0,0.7166444]
[1641115293571,0.60159983,47218.0,47217.0,0.9066444]
[1641115294673,0.60159983,47218.0,47217.0,0.7266444]
[1641115294875,0.60159983,47218.0,47217.0,0.7166444]
[1641115295577,0.60159983,47218.0,47217.0,0.9066444]
[1641115296875,0.60159983,47218.0,47217.0,0.7166444]
[1641115297075,0.60159983,47218.0,47217.0,0.6566444]
[1641115297277,0.60159983,47219.0,47217.0,0.7166444]
[1641115297478,0.60159983,47219.0,47217.0,0.9066444]
[1641115298181,0.60159983,47219.0,47218.0,0.5366444]
[1641115298380,0.60159983,47219.0,47218.0,0.6036944]
[1641115298780,0.84225904,47220.0,47218.0,0.6036944]
[1641115299480,0.84225904,47219.0,47218.0,0.25305]
[1641115300685,0.84225904,47220.0,47218.0,0.25305]
[1641115300883,0.84225904,47220.0,47218.0,0.06705]
[1641115301282,0.93252826,47219.0,47218.0,0.06705]
[1641115301484,0.93252826,47219.0,47218.0,0.25105]
[1641115302785,0.60159068,47219.0,47218.0,0.25105]
[1641115302987,0.60159068,47219.0,47218.0,0.06705]
[1641115303387,0.60159068,47219.0,47217.0,0.18]
[1641115303588,0.60159068,47219.0,47218.0,0.188]
[1641115303788,0.60159068,47219.0,47218.0,0.25825]
[1641115304591,0.84225904,47220.0,47218.0,0.25825]
[1641115304990,0.84225904,47220.0,47218.0,0.07025]
[1641115305189,0.60159425,47219.0,47218.0,0.07025]
[1641115305590,0.60159425,47219.0,47218.0,0.25525]
[1641115306891,0.60159425,47219.0,47218.0,0.07025]
[1641115307592,0.60159425,47219.0,47218.0,0.25725]
[1641115307992,1.3236239,47224.0,47218.0,0.25725]
[1641115308892,1.3236239,47224.0,47222.0,0.84107762]
[1641115309694,1.3236239,47223.0,47222.0,0.84107762]
[1641115310794,1.41389145,47225.0,47218.0,0.07025]
[1641115310993,1.41389145,47225.0,47217.0,1.49976761]
[1641115311594,1.41389145,47225.0,47217.0,1.67176761]
[1641115311796,0.09026755,47225.0,47222.0,0.36017484]
[1641115313697,0.09026755,47225.0,47222.0,0.50117484]
[1641115314296,0.09026755,47225.0,47223.0,0.36017484]
[1641115315596,0.09026755,47225.0,47223.0,0.48917484]
[1641115316498,0.09026755,47225.0,47223.0,0.129]
[1641115316897,0.09026755,47225.0,47222.0,0.36017484]
[1641115317097,0.09026755,47225.0,47223.0,0.36017484]
[1641115317499,0.09026755,47225.0,47223.0,0.48617484]
[1641115318899,0.09026755,47225.0,47223.0,0.36017484]
[1641115319699,0.09026755,47225.0,47223.0,0.50817484]
[1641115320799,0.09026755,47225.0,47223.0,0.36017484]
[1641115321601,0.09026755,47225.0,47223.0,0.184]
[1641115322404,0.09026755,47225.0,47224.0,0.36022394]
[1641115323721,0.09026755,47225.0,47224.0,0.53822394]
[1641115324122,0.09026755,47225.0,47224.0,0.178]
[1641115324922,0.09026755,47225.0,47223.0,0.36022394]
[1641115325126,0.6810239,47229.0,47223.0,0.36022394]
[1641115325428,1.54484719,47240.0,47228.0,0.18]
[1641115325429,0.39974787,47234.0,47228.0,0.18]
[1641115325627,1.06995265,47240.0,47229.0,1.111]
[1641115325825,0.15585265,47240.0,47233.0,0.8]
[1641115326024,0.68799729,47250.0,47239.0,0.12]
[1641115326226,1.0330798,47261.0,47239.0,0.7782]
[1641115326429,0.54019499,47261.0,47240.0,0.2124]
[1641115326626,0.14024054,47267.0,47249.0,1.29]
[1641115326827,0.01375254,47267.0,47249.0,1.29]
[1641115327025,2.05723803,47275.0,47260.0,0.06]
[1641115327228,1.83623803,47275.0,47260.0,0.3182]
[1641115327425,0.47524956,47275.0,47260.0,0.3182]
[1641115327629,0.38464956,47275.0,47260.0,1.316]
[1641115327825,3.69054745,47289.0,47260.0,1.316]
[1641115328025,1.77011723,47289.0,47266.0,0.4]
[1641115328228,1.49761723,47289.0,47266.0,0.4]
[1641115328427,1.48871031,47285.0,47277.0,0.14033567]
[1641115328626,1.37941031,47285.0,47277.0,0.14033567]
[1641115328828,1.13981031,47285.0,47277.0,0.14033567]
[1641115329132,1.63090326,47295.0,47277.0,0.14033567]
[1641115329328,1.31160326,47295.0,47288.0,0.0778]
[1641115329530,0.85986568,47295.0,47288.0,0.336]
[1641115329729,0.06337441,47338.0,47288.0,1.5176]
[1641115329730,0.34013877,47309.0,47288.0,1.5176]
[1641115330029,1.8346,47347.0,47288.0,1.5176]
[1641115330030,1.111,47356.0,47308.0,0.06]
[1641115330232,0.08556423,47346.0,47323.0,0.02]
[1641115330429,0.08556423,47344.0,47332.0,3.1883211]
[1641115330630,0.009794,47343.0,47332.0,3.1883211]
[1641115330830,0.009794,47343.0,47333.0,1.056122]
[1641115331031,0.14033567,47342.0,47333.0,1.056122]
[1641115331231,0.14033567,47342.0,47334.0,0.02112315]
[1641115331532,1.44025482,47334.0,47332.0,3.32865677]
[1641115332031,1.44025482,47334.0,47333.0,0.02112367]
[1641115332231,1.44025482,47334.0,47333.0,1.07746867]
[1641115332832,0.10668439,47359.0,47333.0,1.39400867]
[1641115333030,0.10668439,47359.0,47346.0,0.14033567]
[1641115333231,0.00052985,47352.0,47346.0,0.21338567]
[1641115333432,0.02112016,47359.0,47346.0,0.21338567]
[1641115333733,0.009794,47358.0,47350.0,0.02111644]
[1641115333930,0.02111644,47367.0,47350.0,0.02111644]
[1641115334133,0.02111644,47367.0,47351.0,1.055787]
[1641115334533,0.02111293,47375.0,47357.0,0.02111293]
[1641115334732,0.02111293,47375.0,47357.0,0.08730293]
[1641115335132,0.02111293,47375.0,47368.0,0.14033567]
[1641115335333,0.02111293,47375.0,47368.0,0.21980567]
[1641115335535,0.14033567,47383.0,47368.0,0.21980567]
[1641115335536,0.2365,47388.0,47374.0,1.47443577]
[1641115335733,0.2125,47388.0,47387.0,1.29443577]
[1641115335931,0.2125,47388.0,47387.0,1.37453154]
[1641115336332,1.8419,47429.0,47394.0,0.15454505]
[1641115336533,0.010206,47399.0,47398.0,1.29443577]
[1641115336732,0.836106,47429.0,47398.0,1.40666445]
[1641115336936,0.02108732,47434.0,47416.0,0.02108732]
[1641115337131,0.02108218,47445.0,47433.0,0.14033567]
[1641115337331,0.02108218,47445.0,47433.0,0.21194567]
[1641115337531,0.02108009,47450.0,47433.0,0.21194567]
[1641115337737,2.63935088,47470.0,47436.0,0.02107834]
[1641115337933,0.06456423,47460.0,47433.0,0.03174567]
[1641115338133,1.89322423,47495.0,47437.0,0.317691]
[1641115338334,0.8,47491.0,47437.0,0.275191]
[1641115338536,0.8,47491.0,47434.0,0.41856588]
[1641115338733,0.3445,47483.0,47435.0,0.272576]
[1641115338935,0.02107791,47458.0,47440.0,0.02107791]
[1641115339132,0.009794,47457.0,47453.0,0.14033567]
[1641115339732,0.009794,47457.0,47435.0,0.02108016]
[1641115339733,0.02108016,47454.0,47435.0,0.02108016]
[1641115339934,0.08433746,47453.0,47424.0,0.02]
[1641115340136,0.02108315,47446.0,47428.0,0.02108315]
[1641115340337,0.02107873,47456.0,47438.0,0.02107873]
[1641115340536,0.14033567,47469.0,47424.0,0.02]
[1641115340537,0.02107418,47466.0,47448.0,0.02107418]
[1641115340736,0.08430423,47471.0,47448.0,0.02107418]
[1641115340737,0.02107259,47470.0,47452.0,0.02107259]
[1641115340933,0.02106971,47477.0,47459.0,0.02106971]
[1641115341135,0.08427885,47486.0,47471.0,0.14033567]
[1641115341136,0.14033567,47486.0,47471.0,0.14033567]
[1641115341334,0.14033567,47486.0,47471.0,0.19743567]
[1641115341738,0.191,47478.0,47476.0,0.00047015]
[1641115341936,0.06315344,47504.0,47471.0,0.19743567]
[1641115342138,0.02105839,47502.0,47484.0,0.02105862]
[1641115342335,0.02105839,47502.0,47484.0,0.09216862]
[1641115342535,0.8,47525.0,47484.0,0.07111]
[1641115343136,0.14033567,47507.0,47497.0,0.14033567]
[1641115343336,0.14033567,47507.0,47497.0,0.20836567]
[1641115343535,0.00052985,47498.0,47497.0,0.20836567]
[1641115343736,0.02106122,47498.0,47497.0,0.39436567]
[1641115343939,0.02105983,47498.0,47497.0,0.39436567]
[1641115344139,0.02105983,47498.0,47492.0,0.14033567]
[1641115344340,0.02106622,47493.0,47462.0,0.02106785]
[1641115344539,0.185,47500.0,47444.0,0.8]
[1641115344744,0.07228,47493.0,47463.0,0.11973772]
[1641115345139,0.07228,47493.0,47436.0,0.46936754]
[1641115345140,0.07228,47493.0,47471.0,0.14033567]
[1641115345339,0.07228,47493.0,47477.0,0.02106135]
[1641115345740,0.189,47493.0,47478.0,0.314058]
[1641115345940,0.02106516,47486.0,47478.0,0.314058]
[1641115346140,0.02106903,47479.0,47478.0,0.11973772]
[1641115346340,0.02106903,47479.0,47471.0,0.29533567]
[1641115346942,0.02106903,47479.0,47471.0,0.14033567]
[1641115347141,0.14033567,47481.0,47471.0,0.13933567]
[1641115347346,0.14033567,47486.0,47476.0,0.00047015]
[1641115347542,0.14033567,47486.0,47478.0,0.02106098]
[1641115347743,0.14033567,47486.0,47468.0,0.64945]
[1641115347744,0.193,47481.0,47468.0,0.64945]
[1641115347942,0.193,47481.0,47468.0,0.06945]
[1641115348241,0.193,47481.0,47468.0,0.18945]
[1641115348442,0.193,47481.0,47470.0,0.58]
[1641115348641,0.193,47481.0,47480.0,0.58]
[1641115348842,0.02,47500.0,47480.0,0.69107129]
[1641115349042,0.02,47500.0,47491.0,0.11972987]
[1641115349342,0.16033567,47500.0,47485.0,0.14033567]
[1641115349742,0.16033567,47500.0,47491.0,0.191]
[1641115350841,0.02106342,47492.0,47491.0,0.191]
[1641115351042,0.08963342,47492.0,47477.0,0.02106144]
[1641115351242,0.14033567,47485.0,47477.0,0.58]
[1641115351641,0.14033567,47485.0,47477.0,0.77]
[1641115351842,0.14033567,47485.0,47481.0,0.58]
[1641115352041,0.14033567,47485.0,47484.0,0.58]
[1641115352242,0.14033567,47490.0,47479.0,0.4]
[1641115352448,0.14033567,47490.0,47477.0,0.19]
[1641115352644,0.21599567,47490.0,47477.0,0.19]
[1641115353041,0.21599567,47490.0,47474.0,0.14033567]
[1641115353242,0.21599567,47490.0,47476.0,0.18]
[1641115353443,0.07566,47490.0,47487.0,0.4]
[1641115353643,0.14033567,47492.0,47487.0,0.4]
[1641115354044,0.16033567,47500.0,47491.0,0.58]
[1641115354246,0.16033567,47500.0,47499.0,0.18]
[1641115354445,0.16033567,47500.0,47499.0,0.58]
[1641115354645,0.16033567,47500.0,47492.0,0.58]
[1641115354845,0.16033567,47500.0,47499.0,0.11970145]
[1641115355050,0.16086552,47500.0,47499.0,0.11970145]
[1641115355249,0.02052985,47500.0,47490.0,0.26003712]
[1641115355445,0.08937,47500.0,47490.0,0.11970145]
[1641115355645,0.08937,47500.0,47491.0,0.11970145]
[1641115356046,0.00052985,47495.0,47491.0,0.11970145]
[1641115356247,0.00052985,47495.0,47474.0,0.32033567]
[1641115356248,0.00052985,47492.0,47474.0,0.14033567]
[1641115356447,0.1139722,47498.0,47474.0,0.14033567]
[1641115356646,0.01197317,47487.0,47474.0,0.14033567]
[1641115356845,0.02106734,47482.0,47474.0,0.14033567]
[1641115357044,0.00052985,47477.0,47474.0,0.14033567]
[1641115357246,0.00052985,47475.0,47474.0,0.14033567]
[1641115357647,0.13252985,47475.0,47474.0,0.27333567]
[1641115358451,0.14033567,47482.0,47477.0,0.0143797]
[1641115358845,0.14033567,47482.0,47478.0,0.58]
[1641115359048,0.14033567,47487.0,47481.0,0.58]
[1641115359446,0.14033567,47487.0,47477.0,0.0143797]
[1641115359645,0.02733567,47487.0,47481.0,0.146]
[1641115360948,0.02733567,47487.0,47479.0,0.589794]
[1641115361146,0.02733567,47487.0,47481.0,0.14033567]
[1641115361547,0.14783415,47487.0,47481.0,0.14033567]
[1641115361748,0.14783415,47487.0,47482.0,0.06]
[1641115361949,0.02733567,47487.0,47481.0,0.28133567]
[1641115363051,0.02733567,47487.0,47481.0,0.14033567]
[1641115363448,0.02733567,47487.0,47482.0,0.58]
[1641115363648,0.02733567,47487.0,47481.0,0.28333567]
[1641115363862,0.02733567,47487.0,47482.0,0.58]
[1641115364048,0.02733567,47487.0,47481.0,0.28333567]
[1641115364450,0.02733567,47487.0,47483.0,0.58]
[1641115364649,0.001,47484.0,47483.0,0.58]
[1641115364853,0.08197559,47483.0,47460.0,0.12]
[1641115365051,0.08197559,47483.0,47461.0,0.18]
[1641115365250,0.14033567,47470.0,47461.0,0.18]